bitfinex-derivatives/quotes_SOLF0:USTF0_20250331
["timestamp","ask_amount","ask_price","bid_price","bid_amount"]
[1743403761892,7.9266,126.18,126.16,7.98778901]
[1743403762092,0.05062903,126.19,126.16,7.98778901]
[1743403763795,7.9266,126.18,126.16,7.98778901]
[1743403764191,0.05062903,126.19,126.16,7.98778901]
[1743403764392,7.97692903,126.19,126.16,7.98778901]
[1743403765395,7.9266,126.18,126.16,7.98778901]
[1743403765697,0.05062903,126.19,126.16,0.06018901]
[1743403765894,7.9272,126.17,126.16,0.06018901]
[1743403766793,7.9302,126.13,126.1,651.0314]
[1743403766995,7.9302,126.13,126.11,29.1]
[1743403767199,14.30349497,126.18,126.11,29.1]
[1743403767399,7.9295,126.14,126.11,29.1]
[1743403767796,7.9295,126.14,126.11,37.0304]
[1743403768095,0.05301915,126.14,126.11,41.3725443]
[1743403768298,0.05301915,126.14,126.13,7.9297]
[1743403769394,0.05301915,126.14,126.12,69.9299]
[1743403769596,0.05301915,126.14,126.12,62.0]
[1743403769792,0.05301915,126.14,126.11,0.05844933]
[1743403769999,7.9303,126.12,126.11,0.05844933]
[1743403770201,0.05301915,126.14,126.11,0.05844933]
[1743403771201,7.9303,126.12,126.11,0.05844933]
[1743403771397,2.0377,126.13,126.06,395.0737]
[1743403771597,2.0377,126.13,126.06,29.14]
[1743403771800,7.9319,126.1,126.07,7.9332]
[1743403772599,7.99082939,126.1,126.07,7.98386671]
[1743403772798,7.99082939,126.1,126.07,69.98386671]
[1743403773001,7.99082939,126.1,126.07,62.05066671]
[1743403773002,7.9323,126.09,126.07,62.05066671]
[1743403773402,0.05892939,126.1,126.07,62.05066671]
[1743403773601,0.05892939,126.1,126.07,0.05066671]
[1743403773796,7.9329,126.08,126.07,0.05066671]
[1743403773998,0.05892939,126.1,126.07,0.05066671]
[1743403774996,0.05892939,126.1,126.07,12.26476168]
[1743403775201,0.05892939,126.1,126.08,29.1]
[1743403775801,0.05892939,126.1,126.09,7.9322]
[1743403776296,0.05892939,126.1,126.08,29.1]
[1743403776492,0.05892939,126.1,126.08,91.1]
[1743403776695,0.05892939,126.1,126.08,29.1]
[1743403777198,0.05892939,126.1,126.08,37.0328]
[1743403780306,7.99062939,126.1,126.08,29.1]
[1743403780906,0.05892939,126.1,126.07,62.05066671]
[1743403781106,0.05892939,126.1,126.07,0.05066671]
[1743403781302,12.27302436,126.1,126.07,0.05066671]
[1743403781503,7.9351,126.05,126.03,29.08]
[1743403782306,7.9351,126.05,126.02,7.9363]
[1743403782499,7.9355,126.04,126.02,0.05682354]
[1743403782699,0.05340281,126.05,126.02,0.05682354]
[1743403782900,7.98840281,126.05,126.02,7.99332354]
[1743403783100,0.05340281,126.05,126.02,0.05682354]
[1743403783303,0.05340281,126.05,126.03,29.08]
[1743403783607,0.05340281,126.05,126.03,37.0157]
[1743403784007,0.05340281,126.05,126.03,99.0157]
[1743403784208,31.0328,126.11,126.03,103.29409497]
[1743403784703,7.9325,126.09,126.05,7.9342]
[1743403785005,1.9528,126.11,126.06,29.1]
[1743403785405,0.05866147,126.1,126.07,0.05407341]
[1743403786005,7.9329,126.08,126.07,0.05407341]
[1743403788206,7.9325,126.09,126.07,0.05407341]
[1743403788404,0.05866147,126.1,126.07,0.05407341]
[1743403788910,7.9329,126.08,126.07,0.05407341]
[1743403797017,0.05866147,126.1,126.07,0.05407341]
[1743403798017,7.9329,126.08,126.07,0.05407341]
[1743403798816,0.05866147,126.1,126.07,0.05407341]
[1743403799517,7.9329,126.08,126.07,0.05407341]
[1743403801119,7.9326,126.09,126.07,0.05407341]
[1743403801617,7.9329,126.08,126.07,0.05407341]
[1743403802612,7.9354,126.04,126.01,12.21409497]
[1743403802812,41.29409497,126.09,126.02,7.9361]
[1743403803012,41.29409497,126.09,126.01,29.08]
[1743403803218,41.29409497,126.09,126.01,41.29409497]
[1743403803410,41.29409497,126.09,126.05,7.9347]
[1743403803616,7.9337,126.07,126.05,7.9347]
[1743403803816,7.9337,126.07,126.06,0.05286597]
[1743403804214,7.9337,126.07,126.05,0.05488806]
[1743403804414,7.9341,126.06,126.05,0.05488806]
[1743403815920,0.05132802,126.07,126.05,0.05488806]
[1743403816519,7.98492802,126.07,126.05,0.05488806]
[1743403817627,7.98492802,126.07,126.05,7.98948806]
[1743403818727,0.05132802,126.07,126.06,7.9341]
[1743403818927,1.9711,126.11,126.05,7.88474227]
[1743403819322,7.9331,126.08,126.05,15.81924227]
[1743403819923,7.9325,126.09,126.06,7.9337]
[1743403820117,0.05234302,126.08,126.05,7.88474227]
[1743403820725,0.05234302,126.08,126.07,7.9335]
[1743403821730,7.82985421,126.13,126.1,7.9314]
[1743403822233,12.23128448,126.12,126.1,7.9314]
[1743403822829,4.30098448,126.11,126.1,7.98324005]
[1743403823726,7.98207393,126.12,126.1,7.98324005]
[1743403824331,0.05177393,126.12,126.1,7.98324005]
[1743403824931,7.98227393,126.12,126.1,7.98324005]
[1743403825431,0.05177393,126.12,126.1,7.98324005]
[1743403825932,7.88162814,126.12,126.1,0.05184005]
[1743403826226,7.82985421,126.11,126.1,0.05184005]
[1743403826532,12.12993756,126.11,126.1,0.05184005]
[1743403826722,12.12993756,126.11,126.07,29.08]
[1743403826723,12.12993756,126.11,126.05,29.08]
[1743403826922,7.82985421,126.09,126.05,29.08]
[1743403827834,0.05289496,126.08,126.06,0.05777751]
[1743403828130,0.05289496,126.08,126.07,15.76335421]
[1743403840149,10.11485421,126.16,126.07,7.82985421]
[1743403840351,43.87857439,126.21,126.12,7.82985421]
[1743403840352,7.82985421,126.17,126.12,7.82985421]
[1743403840548,7.82985421,126.17,126.13,7.9294]
[1743403840746,4.29386611,126.16,126.13,7.9294]
[1743403841147,4.29386611,126.15,126.13,7.98987701]
[1743403841348,12.22276611,126.15,126.13,7.98987701]
[1743403841648,7.9289,126.15,126.13,7.98987701]
[1743403842651,7.9291,126.14,126.13,0.06047701]
[1743403843851,15.75895421,126.14,126.13,0.06047701]
[1743403844350,7.9291,126.14,126.13,0.06047701]
[1743403845353,0.05757661,126.16,126.13,0.06047701]
[1743403845654,0.05757661,126.16,126.13,29.14047701]
[1743403846254,7.9288,126.15,126.13,29.14047701]
[1743403847456,7.9291,126.14,126.13,29.14047701]
[1743403847857,7.88743082,126.16,126.13,29.14047701]
[1743403848257,7.88743082,126.16,126.13,0.06047701]
[1743403848759,7.9291,126.14,126.13,0.06047701]
[1743403848960,7.88743082,126.16,126.13,0.06047701]
[1743403849359,7.9289,126.15,126.13,0.06047701]
[1743403850663,7.98577661,126.16,126.13,7.99007701]
[1743403850859,7.98577661,126.16,126.13,0.06047701]
[1743403851360,7.98577661,126.16,126.13,7.98987701]
[1743403851661,7.98577661,126.16,126.13,0.06047701]
[1743403851857,0.05757661,126.16,126.14,7.9288]
[1743403852363,7.9288,126.15,126.13,7.89033122]
[1743403852559,7.9288,126.15,126.13,0.06047701]
[1743403853659,0.05757661,126.16,126.13,7.89033122]
[1743403853859,0.05757661,126.16,126.14,29.06]
[1743403854161,7.98537661,126.16,126.14,36.9887]
[1743403854358,0.05757661,126.16,126.14,36.9887]
[1743403855665,0.05757661,126.16,126.14,29.06]
[1743403856563,7.98567661,126.16,126.14,29.06]
[1743403858372,7.98567661,126.16,126.14,36.989]
[1743403859968,7.98567661,126.16,126.14,29.06]
[1743403860968,7.98567661,126.16,126.14,36.989]
[1743403861370,7.88743082,126.16,126.13,0.06047701]
[1743403861572,0.05757661,126.16,126.13,7.98987701]
[1743403861869,7.98577661,126.16,126.13,7.98987701]
[1743403862169,7.98577661,126.16,126.13,37.04987701]
[1743403862772,7.9286,126.15,126.13,37.04987701]
[1743403863572,7.9291,126.14,126.13,29.12047701]
[1743403863769,7.9291,126.14,126.13,0.06047701]
[1743403863972,7.82985421,126.14,126.08,285.32]
[1743403864175,7.82985421,126.12,126.07,36.88985421]
[1743403864770,7.9325,126.09,126.07,29.06]
[1743403865172,7.98301438,126.09,126.07,29.11748328]
[1743403866070,7.98301438,126.09,126.07,37.05088328]
[1743403866271,0.05051438,126.09,126.07,36.94733749]
[1743403866778,0.05051438,126.09,126.07,44.88053749]
[1743403866971,0.05051438,126.09,126.08,62.0]
[1743403867976,7.98271438,126.09,126.08,62.0]
[1743403868374,0.05051438,126.09,126.08,62.0]
[1743403868876,7.98271438,126.09,126.08,62.0]
[1743403870481,0.05051438,126.09,126.08,62.0]
[1743403871777,7.98271438,126.09,126.08,62.0]
[1743403873987,0.05051438,126.09,126.08,62.0]
[1743403875985,0.05051438,126.09,126.08,77.76275421]
[1743403878178,0.05051438,126.09,126.08,62.0]
[1743403879086,7.88036859,126.09,126.03,7.82985421]
[1743403879393,7.82985421,126.06,126.02,29.08]
[1743403879590,7.9357,126.04,126.02,29.08]
[1743403880389,7.98845497,126.04,126.02,29.13022334]
[1743403881589,7.936,126.03,126.02,29.13022334]
[1743403882190,0.05275497,126.04,126.02,99.06672334]
[1743403883092,0.05275497,126.04,126.03,15.76585421]
[1743403884091,0.05275497,126.04,126.03,7.82985421]
[1743403884297,0.05275497,126.04,126.02,98.96007755]
[1743403885799,0.05275497,126.04,126.03,7.936]
[1743403886102,0.05275497,126.04,126.03,15.76585421]
[1743403886802,0.05275497,126.04,126.03,7.936]
[1743403887707,0.05275497,126.04,126.02,106.89637755]
[1743403889706,7.98815497,126.04,126.02,91.13022334]
[1743403890407,0.05275497,126.04,126.02,99.06672334]
[1743403890606,0.05275497,126.04,126.02,91.13022334]
[1743403891005,7.98845497,126.04,126.02,62.05022334]
[1743403891203,0.05275497,126.04,126.02,62.05022334]
[1743403891400,7.82985421,126.03,126.02,62.05022334]
[1743403891599,15.76585421,126.03,126.02,0.05022334]
[1743403894610,15.76585421,126.03,126.02,62.05022334]
[1743403894912,18.27015421,126.03,126.02,62.05022334]
[1743403895605,10.33415421,126.03,125.98,37.0188]
[1743403895810,7.9374,126.01,125.98,37.0188]
[1743403896612,15.76675421,126.02,125.99,7.9385]
[1743403896800,0.05465009,126.01,125.99,0.05883185]
[1743403897006,0.05465009,126.01,126.0,7.82985421]
[1743403897405,0.05465009,126.01,126.0,15.76775421]
[1743403897811,0.05465009,126.01,126.0,29.08]
[1743403898512,0.05465009,126.01,125.99,7.99733185]
[1743403898810,0.05465009,126.01,126.0,62.0]
[1743403899611,7.99195009,126.01,126.0,62.0]
[1743403899810,0.05465009,126.01,126.0,62.0]
[1743403901105,0.05465009,126.01,126.0,69.9379]
[1743403902206,0.05465009,126.01,126.0,62.0]
[1743403903010,0.05465009,126.01,126.0,69.9379]
[1743403903412,20.78895421,126.06,126.03,7.936]
[1743403903712,18.23255421,126.06,126.03,7.936]
[1743403903909,10.29795421,126.06,126.03,7.936]
[1743403904109,7.9351,126.05,126.02,37.0163]
[1743403904616,7.98650982,126.05,126.02,37.07434873]
[1743403905508,7.9354,126.04,126.02,29.13804873]
[1743403905909,7.88126403,126.05,126.02,29.13804873]
[1743403906115,7.936,126.03,126.02,29.13804873]
[1743403906310,7.936,126.03,126.02,0.05804873]
[1743403906511,15.76585421,126.03,126.02,62.05804873]
[1743403906712,15.76585421,126.03,126.02,0.05804873]
[1743403909715,15.76585421,126.03,126.02,62.05804873]
[1743403911415,7.936,126.03,126.02,62.05804873]
[1743403912217,15.76585421,126.03,126.02,62.05804873]
[1743403918718,15.76585421,126.03,126.02,0.05804873]
[1743403919514,20.05523616,126.03,126.02,0.05804873]
[1743403919819,12.22538195,126.03,126.02,0.05804873]
[1743403920121,7.936,126.03,126.02,0.05804873]
[1743403921018,13.61856291,126.11,126.02,15.82790294]
[1743403921211,10.92556291,126.11,126.08,7.82985421]
[1743403921615,10.92556291,126.11,126.09,62.0]
[1743403921913,18.75541712,126.11,126.09,62.0]
[1743403922117,51.76854167,126.11,126.09,62.06046495]
[1743403922514,43.93868746,126.11,126.09,62.06046495]
[1743403922815,51.76854167,126.11,126.09,62.06046495]
[1743403923018,7.82985421,126.1,126.09,62.06046495]
[1743403923718,43.93868746,126.11,126.09,62.06046495]
[1743403924409,43.93868746,126.11,126.09,69.99226495]
[1743403924618,43.93868746,126.11,126.09,62.06046495]
[1743403925118,43.93868746,126.11,126.09,69.99216495]
[1743403925520,0.06011307,126.11,126.09,69.99216495]
[1743403925715,0.06011307,126.11,126.1,7.9316]
[1743403926422,12.22503525,126.18,126.13,7.9293]
[1743403926612,12.22503525,126.18,126.1,29.08]
[1743403926816,4.23145974,126.17,126.11,12.22503525]
[1743403927215,4.23145974,126.16,126.11,12.22503525]
[1743403927417,4.23145974,126.16,126.1,29.08]
[1743403927619,7.98916324,126.15,126.12,0.06034869]
[1743403927819,12.22062298,126.15,126.12,0.06034869]
[1743403928114,4.29182298,126.15,126.12,0.06034869]
[1743403928416,0.06036324,126.15,126.12,0.06034869]
[1743403928618,46.49543525,126.14,126.01,2.5701]
[1743403928818,12.22503525,126.11,126.07,7.9331]
[1743403929420,12.22503525,126.13,126.08,7.9328]
[1743403929725,0.05620721,126.12,126.09,0.05056502]
[1743403929929,7.9312,126.11,126.09,0.05056502]
[1743403933526,0.05620721,126.12,126.09,0.05056502]
[1743403934232,12.22503525,126.11,126.09,0.05056502]
[1743403934423,7.9316,126.1,126.09,0.05056502]
[1743403937330,7.94,126.1,125.98,12.22503525]
[1743403937524,12.22503525,126.06,125.99,29.08]
[1743403938329,0.05304227,126.04,126.01,0.05195854]
[1743403938531,0.05304227,126.04,126.01,7.98885854]
[1743403940026,5.2008,126.09,126.02,41.30503525]
[1743403940224,41.30503525,126.12,126.03,62.0]
[1743403940624,7.9326,126.09,126.05,7.9342]
[1743403940826,4.223462,126.11,126.05,29.08]
[1743403941025,7.9335,126.07,126.05,29.08]
[1743403941425,0.05951012,126.09,126.05,29.08]
[1743403941630,7.9341,126.06,126.05,0.0511234]
[1743403944427,7.9338,126.07,126.05,0.0511234]
[1743403945329,7.9341,126.06,126.05,0.0511234]
[1743403947533,7.9341,126.06,126.05,62.0511234]
[1743403951735,7.9341,126.06,126.05,0.0511234]
[1743403954739,7.9341,126.06,126.05,62.0511234]
[1743403956643,0.05951012,126.09,126.05,91.1311234]
[1743403957039,7.9329,126.08,126.05,99.0656234]
[1743403957445,0.05951012,126.09,126.05,91.1311234]
[1743403957839,7.9339,126.07,126.05,91.1311234]
[1743403958848,7.9332,126.08,126.05,91.1311234]
[1743403959039,7.9332,126.08,126.05,99.0656234]
[1743403960545,7.9335,126.07,126.05,99.0656234]
[1743403960942,0.05951012,126.09,126.06,7.934]
[1743403961138,7.99201012,126.09,126.06,7.934]
[1743403961845,7.9329,126.08,126.05,99.0655234]
[1743403962045,0.05951012,126.09,126.05,91.1311234]
[1743403962239,7.99191012,126.09,126.07,7.9333]
[1743403962445,7.99191012,126.09,126.05,91.1311234]
[1743403962746,7.99191012,126.09,126.06,7.9338]
[1743403962947,7.933,126.08,126.05,91.1311234]
[1743403963446,7.933,126.08,126.06,7.9338]
[1743403964850,7.9335,126.07,126.05,99.0657234]
[1743403965250,0.05951012,126.09,126.05,91.1311234]
[1743403965550,7.9341,126.06,126.05,91.1311234]
[1743403965752,0.05951012,126.09,126.05,91.1311234]
[1743403966548,7.9341,126.06,126.05,62.0511234]
[1743403966747,7.9341,126.06,126.05,0.0511234]
[1743403967951,12.17162755,126.06,126.05,0.0511234]
[1743403968754,7.9362,126.03,126.01,29.08]
[1743403969653,7.9362,126.03,126.02,62.0]
[1743403969857,7.99143792,126.03,126.02,62.0]
[1743403970352,7.9366,126.02,126.01,0.05347298]
[1743403970757,0.05523792,126.03,126.01,0.05347298]
[1743403970958,0.05523792,126.03,126.02,29.08]
[1743403971154,85.18360964,126.12,126.02,41.30503525]
[1743403971360,85.18360964,126.12,126.06,7.934]
[1743403971762,7.9326,126.09,126.06,7.934]
[1743403972360,7.98630766,126.09,126.06,7.98754974]
[1743403972757,7.98630766,126.09,126.07,7.9331]
[1743403972758,0.05370766,126.09,126.07,7.9331]
[1743403972963,0.05370766,126.09,126.06,0.05354974]
[1743403973258,7.9335,126.07,126.06,0.05354974]
[1743403973864,12.17555687,126.07,126.06,0.05354974]
[1743403975763,4.24205687,126.07,126.06,0.05354974]
[1743403976363,12.17555687,126.07,126.06,62.05354974]
[1743403977864,12.17555687,126.07,126.06,0.05354974]
[1743403980073,4.24205687,126.07,126.06,0.05354974]
[1743403980274,4.24205687,126.07,126.06,29.13354974]
[1743403980569,0.24205687,126.07,126.06,29.13354974]
[1743403980764,7.98640766,126.09,126.06,29.13354974]
[1743403980967,0.05370766,126.09,126.07,62.0]
[1743403981163,7.98590766,126.09,126.07,69.9332]
[1743403981571,0.05370766,126.09,126.07,62.0]
[1743403982373,0.05370766,126.09,126.07,69.9331]
[1743403982763,0.05370766,126.09,126.07,62.0]
[1743403983776,7.9335,126.07,126.06,0.05354974]
[1743403986982,7.9335,126.07,126.06,62.05354974]
[1743403989477,7.9332,126.08,126.06,62.05354974]
[1743403990080,0.05370766,126.09,126.06,91.13354974]
[1743403990280,0.05370766,126.09,126.06,99.06744974]
[1743403990482,0.05370766,126.09,126.06,91.13354974]
[1743403990674,0.05370766,126.09,126.07,7.933]
[1743403991175,0.05370766,126.09,126.08,7.9329]
[1743403998185,14.88543525,126.17,126.12,7.9303]
[1743403998380,14.88543525,126.17,126.12,29.06]
[1743403998579,7.9281,126.16,126.12,29.06]
[1743403999085,2.534,126.18,126.12,29.06]
[1743403999086,10.4609,126.18,126.12,29.06]
[1743403999287,7.9269,126.18,126.16,7.9275]
[1743403999489,0.05877005,126.16,126.15,29.06]
[1743403999884,0.05877005,126.16,126.15,36.9881]
[1743404000386,0.05877005,126.16,126.15,29.06]
[1743404001585,0.05877005,126.16,126.15,62.0]
[1743404003781,7.98657005,126.16,126.15,62.0]
[1743404004786,0.05877005,126.16,126.15,62.0]
[1743404005386,7.98657005,126.16,126.15,62.0]
[1743404005687,0.05877005,126.16,126.14,0.05798731]
[1743404006089,7.9284,126.15,126.14,0.05798731]
[1743404007688,0.05877005,126.16,126.14,29.11798731]
[1743404007879,0.05877005,126.16,126.14,37.04678731]
[1743404008488,0.05877005,126.16,126.15,62.0]
[1743404010594,0.05877005,126.16,126.15,69.9284]
[1743404012096,0.05877005,126.16,126.15,62.0]
[1743404013499,0.05877005,126.16,126.15,69.9284]
[1743404015199,0.05877005,126.16,126.15,62.0]
[1743404016399,7.9284,126.15,126.14,0.05798731]
[1743404016799,5.27107005,126.16,126.09,387.06]
[1743404017001,7.93,126.13,126.09,394.992]
[1743404017303,7.93,126.13,126.09,387.06]
[1743404017598,29.06,126.21,126.12,12.22503525]
[1743404017800,41.28503525,126.21,126.13,29.06]
[1743404018103,0.05123927,126.18,126.15,0.05339647]
[1743404019299,7.9278,126.16,126.15,62.05339647]
[1743404020504,7.9278,126.16,126.15,0.05339647]
[1743404023505,7.9278,126.16,126.15,62.05339647]
[1743404024401,7.9275,126.17,126.15,62.05339647]
[1743404024804,0.05123927,126.18,126.15,62.05339647]
[1743404027009,7.9278,126.16,126.15,62.05339647]
[1743404029308,7.9277,126.17,126.15,62.05339647]
[1743404029509,0.05123927,126.18,126.15,62.05339647]
[1743404030609,7.9278,126.16,126.15,62.05339647]
[1743404031105,0.05123927,126.18,126.15,62.05339647]
[1743404031307,0.05123927,126.18,126.16,29.04]
[1743404031711,7.97823927,126.18,126.16,29.04]
[1743404032208,0.05123927,126.18,126.16,29.04]
[1743404032602,0.05123927,126.18,126.17,7.9272]
[1743404032812,7.9244,126.22,126.16,41.26503525]
[1743404033004,43.87857439,126.24,126.18,12.22503525]
[1743404033206,43.87857439,126.24,126.2,7.9248]
[1743404033402,51.80167439,126.24,126.19,29.04]
[1743404033603,43.87857439,126.24,126.19,29.04]
[1743404034004,7.9243,126.22,126.2,0.05752678]
[1743404035110,0.05222462,126.23,126.2,0.05752678]
[1743404035611,12.27725987,126.23,126.2,0.05752678]
[1743404036507,7.9247,126.21,126.2,0.05752678]
[1743404036711,2.6588,126.22,126.16,29.04]
[1743404037108,7.9269,126.18,126.16,29.04]
[1743404038009,7.98564034,126.18,126.16,29.09693643]
[1743404039107,7.98564034,126.18,126.16,37.02473643]
[1743404039307,0.05874034,126.18,126.16,37.02473643]
[1743404039811,7.98544034,126.18,126.16,37.02473643]
[1743404040311,7.98544034,126.18,126.16,29.09693643]
[1743404040511,7.9272,126.17,126.16,29.09693643]
[1743404041812,41.26503525,126.17,126.09,358.0]
[1743404042014,12.22503525,126.15,126.08,29.04]
[1743404042203,7.9318,126.1,126.08,29.04]
[1743404042616,41.26503525,126.15,126.08,29.04]
[1743404042913,0.05925347,126.1,126.08,37.02459413]
[1743404043109,0.05874827,126.1,126.08,0.05209413]
[1743404044209,7.99054827,126.1,126.08,0.05209413]
[1743404044409,0.05874827,126.1,126.08,0.05209413]
[1743404044808,0.05874827,126.1,126.09,62.0]
[1743404045805,7.99034827,126.1,126.09,62.0]
[1743404046811,0.05874827,126.1,126.09,62.0]
[1743404047815,7.99034827,126.1,126.09,62.0]
[1743404055016,7.9322,126.09,126.08,0.05209413]
[1743404055216,0.05874827,126.1,126.02,370.22503525]
[1743404055414,14.93693525,126.11,126.02,41.28503525]
[1743404055615,7.935,126.05,126.02,41.28503525]
[1743404056309,7.98617445,126.05,126.02,41.34233905]
[1743404057318,7.98617445,126.05,126.02,49.27883905]
[1743404057515,7.9354,126.04,126.02,0.0573038]
[1743404058021,7.9354,126.04,126.03,62.0]
[1743404063924,0.05117445,126.05,126.03,62.0]
[1743404064529,0.05117445,126.05,126.04,7.9354]
[1743404064720,0.05117445,126.05,126.02,0.0573038]
[1743404064925,0.05117445,126.05,126.02,12.28233905]
[1743404065223,0.05117445,126.05,126.04,7.9354]
[1743404065426,0.05117445,126.05,126.04,36.9954]
[1743404065628,0.05117445,126.05,126.04,29.06]
[1743404067629,0.05117445,126.05,126.04,91.06]
[1743404070833,0.05117445,126.05,126.04,98.9954]
[1743404071530,0.05117445,126.05,126.04,91.06]
[1743404073537,0.05117445,126.05,126.04,62.0]
[1743404074442,7.98587445,126.05,126.04,62.0]
[1743404076541,7.936,126.03,126.02,0.0573038]
[1743404079647,7.936,126.03,126.02,62.0573038]
[1743404080247,7.9356,126.04,126.02,62.0573038]
[1743404081848,7.936,126.03,126.02,62.0573038]
[1743404082248,0.05117445,126.05,126.02,62.0573038]
[1743404082449,7.9356,126.04,126.02,62.0573038]
[1743404083247,0.05117445,126.05,126.02,62.0573038]
[1743404083843,0.05117445,126.05,126.02,69.9934038]
[1743404084251,0.05117445,126.05,126.02,62.0573038]
[1743404084451,0.05117445,126.05,126.02,69.88883448]
[1743404084953,0.05117445,126.05,126.02,62.0573038]
[1743404086152,0.05117445,126.05,126.02,69.9936038]
[1743404086751,7.98597445,126.05,126.02,69.9936038]
[1743404088154,7.9355,126.04,126.02,62.0573038]
[1743404089357,7.98627445,126.05,126.02,69.9937038]
[1743404090554,7.98627445,126.05,126.03,7.936]
[1743404090747,0.05117445,126.05,126.03,7.936]
[1743404091757,0.05117445,126.05,126.02,62.0573038]
[1743404091960,0.05117445,126.05,126.03,29.06]
[1743404092257,0.05117445,126.05,126.03,36.9956]
[1743404096157,0.05117445,126.05,126.04,7.9354]
[1743404096358,331.86757439,126.13,126.04,12.23655025]
[1743404096557,46.44757439,126.13,126.05,2.6161]
[1743404096763,7.931,126.11,126.08,7.9324]
[1743404097358,7.98824354,126.11,126.08,7.99231539]
[1743404098457,0.05724354,126.11,126.08,7.99231539]
[1743404098765,0.05724354,126.11,126.08,0.05991539]
[1743404098960,12.23655025,126.1,126.08,0.05991539]
[1743404099166,7.9322,126.09,126.08,0.05991539]
[1743404100560,7.9345,126.06,126.04,29.06]
[1743404100865,7.9345,126.06,126.03,7.9359]
[1743404101361,7.9338,126.07,126.04,7.9354]
[1743404101661,12.23655025,126.1,126.02,91.06]
[1743404101862,7.9343,126.06,126.04,0.05421813]
[1743404102066,0.05411417,126.07,126.04,0.05421813]
[1743404102663,7.9341,126.06,126.04,0.05421813]
[1743404103468,0.05411417,126.07,126.04,0.05421813]
[1743404104369,0.05411417,126.07,126.05,7.9341]
[1743404104565,0.05411417,126.07,126.04,0.05421813]
[1743404104761,0.05411417,126.07,126.05,29.06]
[1743404105359,0.05411417,126.07,126.06,7.9341]
[1743404105568,0.05411417,126.07,126.05,29.06]
[1743404105773,0.05411417,126.07,126.05,36.8871081]
[1743404106070,0.05411417,126.07,126.05,44.8214081]
[1743404106266,0.05411417,126.07,126.05,36.8871081]
[1743404106667,0.05411417,126.07,126.06,7.9341]
[1743404107164,7.98771417,126.07,126.05,36.8871081]
[1743404107371,0.05411417,126.07,126.05,36.8871081]
[1743404107865,7.98791417,126.07,126.05,36.8871081]
[1743404108068,7.98791417,126.07,126.05,29.06]
[1743404108872,0.05411417,126.07,126.05,36.9943]
[1743404109469,0.05411417,126.07,126.05,29.06]
[1743404109971,0.05411417,126.07,126.04,7.88132623]
[1743404109972,7.8271081,126.06,126.04,0.05421813]
[1743404110167,7.8271081,126.05,125.99,7.8271081]
[1743404110366,7.8271081,126.04,125.99,7.8271081]
[1743404110573,7.9363,126.03,125.99,7.8271081]
[1743404111073,7.9367,126.02,125.99,7.8271081]
[1743404111276,7.99462386,126.02,126.0,0.03986598]
[1743404111467,0.05792386,126.02,126.0,0.03986598]
[1743404111978,7.9373,126.01,126.0,0.03986598]
[1743404113174,7.9373,126.01,126.0,62.03986598]
[1743404114875,0.05792386,126.02,126.0,62.03986598]
[1743404115275,7.9373,126.01,126.0,62.03986598]
[1743404116573,0.05792386,126.02,126.0,62.03986598]
[1743404117585,7.99502386,126.02,126.0,62.03986598]
[1743404118983,7.9373,126.01,126.0,62.03986598]
[1743404121685,0.05792386,126.02,126.0,62.03986598]
[1743404122486,7.9373,126.01,126.0,62.03986598]
[1743404129090,0.05792386,126.02,126.0,62.03986598]
[1743404129391,0.05792386,126.02,126.01,7.9373]
[1743404129588,31.6208,126.07,126.01,29.06]
[1743404129785,7.9352,126.05,126.02,7.9364]
[1743404130388,12.24115415,126.06,126.0,62.0]
[1743404130892,7.9364,126.03,126.02,0.06031973]
[1743404131989,15.7720085,126.03,126.02,0.06031973]
[1743404132593,15.82294829,126.04,126.02,0.06031973]
[1743404132992,7.8356085,126.03,126.02,0.06031973]
[1743404133188,15.7716085,126.03,126.02,0.06031973]
[1743404134190,7.8356085,126.03,125.95,293.4356085]
[1743404134396,7.8356085,126.01,125.95,314.66]
[1743404135490,0.05864337,125.99,125.97,0.03747011]
[1743404135787,7.9397,125.98,125.97,0.03747011]
[1743404135985,15.7753085,125.98,125.97,0.03747011]
[1743404136990,7.9413,125.95,125.93,29.06]
[1743404137296,7.9413,125.95,125.94,62.0]
[1743404137496,7.9408,125.96,125.94,62.0]
[1743404137697,7.8356085,125.97,125.94,62.0]
[1743404137897,7.9404,125.96,125.94,62.0]
[1743404138099,7.88707088,125.97,125.94,62.0]
[1743404138297,0.05146238,125.97,125.94,62.0]